Workbook

Sheet Intro
B3: KSU-Buy/Sell (Yearling-Fed)
B5: An Excel spreadsheet for calculating breakeven cattle prices of yearlings placed on feed
L8: Version- 10.13.2015
B28: INTRODUCTION
B29: A spreadsheet program to calculate the maximum price that can be paid for feeder cattle given an expected fed cattle selling price and cost of gain. Additionally, this program also calculates the breakeven fed cattle selling price needed given a yearling purchase price and an estimated cost of gain.
B31: INSTRUCTIONS FOR THE USER:
B32: Be sure to "Enable Content" and "Enable Macros" for the spreadsheet to function correctly.
B33: In the Sell and Buy sheets all blue numbers are inputs and all black numbers are calculated from these inputs. The spreadsheet automatically recalculates every time an additional input is entered. Thus, it is important to wait until all data have been entered and reviewed before interpreting any of the calculated results (i.e., black numbers).
B40: FOR MORE INFORMATION:
B41: Links to supporting materials:
C42: www.agmanager.info/livestock/marketing/ | I42: www.BeefBasis.com
B43: Updated and Expanded by: | I43: Originally developed by:
B45: Glynn T. Tonsor, Ph.D. | I45: Kevin C. Dhuyvetter, Ph.D.
B46: Agricultural Economist | I46: Former Extension Agricultural Economist
B47: Department of Agricultural Economics | I47: Department of Agricultural Economics
B48: Kansas State University | I48: Kansas State University
B49: gtonsor@k-state.edu
B50: 785-532-1518
B52: Brian Highfill
B53: Graduate Research Assistant
B54: Kansas State University
B55: Copyright 2016 AgManager.info, K-State Department of Agricultural Economics

Sheet Sell
B2: Breakeven Selling Price Worksheet | H2: (Blue values in shaded cells are inputs to be entered)
B4: Purchase weight (lbs) | H4: 725
B5: Purchase price ($/cwt) | H5: 185 | N5: =IF(H5<1," Enter purchase price as $/Cwt.!"," ") -> 
B6: Purchase date (mm/dd/yy) | H6: =NOW() -> 2016-05-31T12:11:15.710
B7: Average Daily Gain (pay-to-pay) | H7: 3.5 | K7: Increments to use in tables below
B8: Feeding cost of gain ($/cwt) | H8: 85 | K8: Selling Weight (lbs) | N8: 100
B9: Interest rate on feeder and feeding cost of gain | H9: 0.065 | K9: Purchase Price ($/cwt) | N9: 5
B10: Percent death loss* | H10: 0.014 | K10: Feeding Cost of Gain ($/cwt) | N10: 5
B11: Costs per head (trucking, vaccines, backgrounding, etc.)** | H11: 20
B12: Desired profit per head | H12: 0
B13: * Enter ONLY if death loss is NOT included in feeding cost of gain, otherwise enter zero.
B14: ** Do not enter any costs included in feeding cost of gain.
C17: Expected sale date | D17: Relevant futures price | E17: Expected basis* | F17: Expected cash price | H17: Purchase Price ($/cwt) | Z17: Selling | AA17: Adj.
B18: Selling | H18: =I18-$N9 -> 170 | I18: =J18-$N9 -> 175 | J18: =K18-$N9 -> 180 | K18: =H5 -> 185 | L18: =K18+$N9 -> 190 | M18: =L18+$N9 -> 195 | N18: =M18+$N9 -> 200 | X18: Days | Y18: Gain | Z18: Weight | AA18: Gain
B19: Weight1 | H19: Breakeven Selling Price ($/cwt)2
B20: =H4+25 -> 750 | C20: =H$6+X20 -> 2016-06-07T15:36:58.567 | D20: 186.625 | E20: -3.86 | F20: =D20+E20 -> 182.765 | H20: =IF($B20<=$H$4," N/A",((H$18/100*$H$4)*(1+$H$9*$X20/365)+(($H$8/100*$AA20)+$H$11)*(1+$H$9/2*$X20/365)+$H$12)/$Z20*100) -> 171.2526461 | I20: 176.1608423 | J20: 181.0690385 | K20: 185.9772346 | L20: 190.8854308 | M20: 195.7936269 | N20: =IF($B20<=$H$4," N/A",((N$18/100*$H$4)*(1+$H$9*$X20/365)+(($H$8/100*$AA20)+$H$11)*(1+$H$9/2*$X20/365)+$H$12)/$Z20*100) -> 200.7018231 | X20: =(B20-$H$4)/$H$7 -> 7.142857143 | Y20: =B20-H$4 -> 25 | Z20: =B20*(1-H$10) -> 739.5 | AA20: =Z20-H$4 -> 14.5
B21: =B20+N$8 -> 850 | C21: 2016-07-06T05:19:49.996 | D21: 180.975 | E21: -4.89 | F21: =D21+E21 -> 176.085 | H21: 161.8951331 | I21: 166.2479016 | J21: 170.6006701 | K21: =IF($B21<=$H$4," N/A",((K$18/100*$H$4)*(1+$H$9*$X21/365)+(($H$8/100*$AA21)+$H$11)*(1+$H$9/2*$X21/365)+$H$12)/$Z21*100) -> 174.9534386 | L21: 179.3062071 | M21: 183.6589756 | N21: 188.0117441 | X21: 35.71428571 | Y21: 125 | Z21: 838.1 | AA21: 113.1
B22: 950 | C22: 2016-08-03T19:02:41.424 | D22: 139.5 | E22: 22.02 | F22: 161.52 | H22: 154.5531475 | I22: 158.4674205 | J22: 162.3816935 | K22: 166.2959665 | L22: 170.2102395 | M22: 174.1245125 | N22: 178.0387855 | X22: 64.28571429 | Y22: 225 | Z22: 936.7 | AA22: 211.7
B23: 1050 | C23: 2016-09-01T08:45:32.853 | D23: 139.5 | E23: 13.47 | F23: 152.97 | H23: 148.6508245 | I23: 152.2101249 | J23: 155.7694254 | K23: 159.3287258 | L23: 162.8880262 | M23: 166.4473267 | N23: 170.0066271 | X23: 92.85714286 | Y23: 325 | Z23: 1035.3 | AA23: 310.3
B24: 1150 | C24: 2016-09-29T22:28:24.281 | D24: 139 | E24: -1.22 | F24: 137.78 | H24: 143.8125999 | I24: 147.0786621 | J24: 150.3447243 | K24: 153.6107865 | L24: 156.8768488 | M24: 160.142911 | N24: 163.4089732 | X24: 121.4285714 | Y24: 425 | Z24: 1133.9 | AA24: 408.9
B25: 1250 | C25: 2016-10-28T12:11:15.710 | D25: 139 | E25: 1.3 | F25: 140.3 | H25: 139.78309 | I25: 142.8028321 | J25: 145.8225743 | K25: 148.8423164 | L25: 151.8620585 | M25: 154.8818007 | N25: 157.9015428 | X25: 150 | Y25: 525 | Z25: 1232.5 | AA25: 507.5
B26: 1350 | C26: 2016-11-26T01:54:07.139 | D26: 130.95 | E26: 3.41 | F26: 134.36 | H26: 136.3825805 | I26: 139.1924944 | J26: 142.0024083 | K26: 144.8123222 | L26: 147.6222361 | M26: 150.4321501 | N26: 153.242064 | X26: 178.5714286 | Y26: 625 | Z26: 1331.1 | AA26: 606.1
G27: 1 | H27: Enter the minimum selling (pay) weight you want to consider.
G28: 2 | H28: ="Based on a feeding cost of gain of $"&LEFT(H8,6)&"/cwt." -> Based on a feeding cost of gain of $85/cwt.
Z29: Adj.
C30: Expected sale date | D30: Relevant futures price | E30: Expected basis | F30: Expected cash price | H30: Feeding Cost of Gain ($/cwt) | Z30: Selling | AA30: Adj.
B31: Selling | H31: =I31-$N10 -> 70 | I31: =J31-$N10 -> 75 | J31: =K31-$N10 -> 80 | K31: =H8 -> 85 | L31: =K31+$N10 -> 90 | M31: =L31+$N10 -> 95 | N31: =M31+$N10 -> 100 | X31: Days | Y31: Gain | Z31: Weight | AA31: Gain
B32: Weight | H32: Breakeven Selling Price ($/cwt)1
B33: =B20 -> 750 | C33: =H$6+X33 -> 2016-06-07T15:36:58.567 | D33: =D20 -> 186.625 | E33: -3.86 | F33: =D33+E33 -> 182.765 | H33: =IF($B33<=$H$4," N/A",(($H$5/100*$H$4)*(1+$H$9*$X33/365)+((H$31/100*$AA33)+$H$11)*(1+$H$9/2*$X33/365)+$H$12)/$Z33*100) -> 185.6829299 | I33: 185.7810315 | J33: 185.879133 | K33: 185.9772346 | L33: 186.0753362 | M33: 186.1734378 | N33: 186.2715393 | X33: =X20 -> 7.142857143 | Y33: =B33-H$4 -> 25 | Z33: =B33*(1-H$10) -> 739.5 | AA33: =Z33-H$4 -> 14.5
B34: 850 | C34: 2016-07-06T05:19:49.996 | D34: 180.975 | E34: -4.89 | F34: =D34+E34 -> 176.085 | H34: 172.92278 | I34: 173.5996662 | J34: 174.2765524 | K34: 174.9534386 | L34: 175.6303248 | M34: 176.307211 | N34: 176.9840971 | X34: 35.71428571 | Y34: 125 | Z34: 838.1 | AA34: 113.1
B35: 950 | C35: 2016-08-03T19:02:41.424 | D35: 139.5 | E35: 22.02 | F35: 161.52 | H35: 162.8864685 | I35: 164.0229678 | J35: 165.1594672 | K35: 166.2959665 | L35: 167.4324658 | M35: 168.5689652 | N35: 169.7054645 | X35: 64.28571429 | Y35: 225 | Z35: 936.7 | AA35: 211.7
B36: 1050 | C36: 2016-09-01T08:45:32.853 | D36: 139.5 | E36: 13.47 | F36: 152.97 | H36: 154.7957558 | I36: 156.3067458 | J36: 157.8177358 | K36: 159.3287258 | L36: 160.8397158 | M36: 162.3507058 | N36: 163.8616958 | X36: 92.85714286 | Y36: 325 | Z36: 1035.3 | AA36: 310.3
B37: 1150 | C37: 2016-09-29T22:28:24.281 | D37: 139 | E37: -1.22 | F37: 137.78 | H37: 148.1430943 | I37: 149.9656584 | J37: 151.7882225 | K37: 153.6107865 | L37: 155.4333506 | M37: 157.2559147 | N37: 159.0784788 | X37: 121.4285714 | Y37: 425 | Z37: 1133.9 | AA37: 408.9
B38: 1250 | C38: 2016-10-28T12:11:15.710 | D38: 139 | E38: 1.3 | F38: 140.3 | H38: 142.5833519 | I38: 144.6696734 | J38: 146.7559949 | K38: 148.8423164 | L38: 150.9286379 | M38: 153.0149594 | N38: 155.1012809 | X38: 150 | Y38: 525 | Z38: 1232.5 | AA38: 507.5
B39: 1350 | C39: 2016-11-26T01:54:07.139 | D39: 130.95 | E39: 3.41 | F39: 134.36 | H39: 137.8736575 | I39: 140.1865457 | J39: 142.499434 | K39: 144.8123222 | L39: 147.1252105 | M39: 149.4380987 | N39: 151.750987 | X39: 178.5714286 | Y39: 625 | Z39: 1331.1 | AA39: 606.1
G40: 1 | H40: ="Based on a purchase price of $"&LEFT(H5,5)&"/cwt." -> Based on a purchase price of $185/cwt.
H42: Breakeven Selling Price is below Expected cash price (expect positive returns) | X42: Footnotes for "Buy" sheet because they will not work in that sheet for some reason
H43: Breakeven Selling Price is above Expected cash price (expect negative returns) | X43: ="Based on a feeding cost of gain of $"&LEFT(Buy!H8,6)&"/cwt." -> Based on a feeding cost of gain of $85/cwt.
X44: ="Based on a selling price of $"&LEFT(Buy!H5,5)&"/cwt." -> Based on a selling price of $125/cwt.

Sheet Buy
B2: Breakeven Buying Price Worksheet | H2: (Blue values in shaded cells are inputs to be entered)
B4: Selling weight after shrink (pay-weight) | H4: 1375
B5: Expected selling price ($/cwt) | H5: 125 | N5: =IF(H5<1," Enter selling price as $/Cwt.!"," ") -> 
B6: Purchase date (mm/dd/yy) | H6: =NOW() -> 2016-05-31T12:11:15.710
B7: Average Daily Gain (pay-to-pay) | H7: 3.5 | K7: Increments to use in tables below
B8: Feeding cost of gain ($/cwt) | H8: 85 | K8: Purchase Weight (lbs) | N8: 100
B9: Interest rate on feeder | H9: 0.065 | K9: Selling Price ($/cwt) | N9: 5
B10: Percent death loss* | H10: 0.014 | K10: Feeding Cost of Gain ($/cwt) | N10: 5
B11: Costs per head (trucking, vaccines, backgrounding, etc.)** | H11: 20
B12: Desired profit per head | H12: 0
B13: * Enter ONLY if death loss is NOT included in feeding cost of gain, otherwise enter zero.
B14: ** Do not enter any costs included in feeding cost of gain.
C17: Expected sale date | D17: Relevant futures price | E17: Expected basis* | F17: Expected cash price | H17: Selling Price ($/cwt) | Z17: Adj.
B18: Purchase | H18: =I18-$N9 -> 110 | I18: =J18-$N9 -> 115 | J18: =K18-$N9 -> 120 | K18: =H5 -> 125 | L18: =K18+$N9 -> 130 | M18: =L18+$N9 -> 135 | N18: =M18+$N9 -> 140 | X18: Days | Y18: Gain | Z18: Gain
B19: Weight1 | H19: Breakeven Purchase Price ($/cwt)2
B20: 1350 | C20: =H$6+X20 -> 2016-06-07T15:36:58.567 | D20: 137.275 | E20: 0.05 | F20: =D20+E20 -> 137.325 | H20: =IF($B20>=$H$4," N/A",(H$18*($H$4*(1-$H$10))/100-(($H$8/100*$Z20)+$H$11)*(1+$H$9/2*$X20/365)-$H$12)/($B20/100*(1+$H$9*$X20/365))) -> 108.4858318 | I20: =IF($B20>=$H$4," N/A",(I$18*($H$4*(1-$H$10))/100-(($H$8/100*$Z20)+$H$11)*(1+$H$9/2*$X20/365)-$H$12)/($B20/100*(1+$H$9*$X20/365))) -> 113.5007491 | J20: 118.5156663 | K20: 123.5305836 | L20: 128.5455008 | M20: 133.560418 | N20: =IF($B20>=$H$4," N/A",(N$18*($H$4*(1-$H$10))/100-(($H$8/100*$Z20)+$H$11)*(1+$H$9/2*$X20/365)-$H$12)/($B20/100*(1+$H$9*$X20/365))) -> 138.5753353 | X20: =($H$4-B20)/$H$7 -> 7.142857143 | Y20: =H$4-B20 -> 25 | Z20: =H$4*(1-H$10)-B20 -> 5.75
B21: =B20-N$8 -> 1250 | C21: 2016-07-06T05:19:49.996 | D21: 137.275 | E21: 0.45 | F21: =D21+E21 -> 137.725 | H21: 109.788779 | I21: 115.1775063 | J21: 120.5662336 | K21: 125.9549609 | L21: 131.3436881 | M21: 136.7324154 | N21: 142.1211427 | X21: 35.71428571 | Y21: 125 | Z21: 105.75
B22: 1150 | C22: 2016-08-03T19:02:41.424 | D22: 139.5 | E22: -0.61 | F22: 138.89 | H22: =IF($B22>=$H$4," N/A",(H$18*($H$4*(1-$H$10))/100-(($H$8/100*$Z22)+$H$11)*(1+$H$9/2*$X22/365)-$H$12)/($B22/100*(1+$H$9*$X22/365))) -> 111.3618057 | I22: 117.1896529 | J22: 123.0175001 | K22: 128.8453473 | L22: 134.6731945 | M22: 140.5010417 | N22: 146.3288889 | X22: 64.28571429 | Y22: 225 | Z22: 205.75
B23: 1050 | C23: 2016-09-01T08:45:32.853 | D23: 139.5 | E23: 13.47 | F23: 152.97 | H23: 113.2813622 | I23: 119.6322943 | J23: 125.9832264 | K23: 132.3341584 | L23: 138.6850905 | M23: 145.0360226 | N23: 151.3869547 | X23: 92.85714286 | Y23: 325 | Z23: 305.75
B24: 950 | C24: 2016-09-29T22:28:24.281 | D24: 138.95 | E24: 11.21 | F24: 150.16 | H24: 115.6561045 | I24: 122.6405963 | J24: 129.6250882 | K24: 136.60958 | L24: 143.5940718 | M24: =IF($B24>=$H$4," N/A",(M$18*($H$4*(1-$H$10))/100-(($H$8/100*$Z24)+$H$11)*(1+$H$9/2*$X24/365)-$H$12)/($B24/100*(1+$H$9*$X24/365))) -> 150.5785636 | N24: 157.5630554 | X24: 121.4285714 | Y24: 425 | Z24: 405.75
B25: 850 | C25: 2016-10-28T12:11:15.710 | D25: 179.575 | E25: -8.99 | F25: 170.585 | H25: 118.6458379 | I25: 126.4133496 | J25: 134.1808613 | K25: 141.9483729 | L25: 149.7158846 | M25: 157.4833963 | N25: 165.250908 | X25: 150 | Y25: 525 | Z25: 505.75
B26: 750 | C26: 2016-11-26T01:54:07.139 | D26: 179.35 | E26: -0.84 | F26: 178.51 | H26: 122.495616 | I26: 131.2553853 | J26: 140.0151545 | K26: 148.7749237 | L26: 157.534693 | M26: 166.2944622 | N26: 175.0542315 | X26: 178.5714286 | Y26: 625 | Z26: 605.75
G27: 1 | H27: Enter the maximum purchase weight you are willing to consider.
G28: 2 | H28: =Sell!X43 -> Based on a feeding cost of gain of $85/cwt.
C30: Expected sale date | D30: Relevant futures price | E30: Expected basis | F30: Expected cash price | H30: Feeding Cost of Gain ($/cwt) | Z30: Adj.
B31: Purchase | H31: =I31-$N10 -> 70 | I31: =J31-$N10 -> 75 | J31: =K31-$N10 -> 80 | K31: =H8 -> 85 | L31: =K31+$N10 -> 90 | M31: =L31+$N10 -> 95 | N31: =M31+$N10 -> 100 | X31: Days | Y31: Gain | Z31: Gain
B32: Weight | H32: Breakeven Purchase Price ($/cwt)1
B33: =B20 -> 1350 | C33: =H$6+X33 -> 2016-06-07T15:36:58.567 | D33: =D20 -> 137.275 | E33: =E20 -> 0.05 | F33: =D33+E33 -> 137.325 | H33: =IF($B33>=$H$4," N/A",($H$5*($H$4*(1-$H$10))/100-((H$31/100*$Z33)+$H$11)*(1+$H$9/2*$X33/365)-$H$12)/($B33/100*(1+$H$9*$X33/365))) -> 123.5944319 | I33: 123.5731491 | J33: 123.5518663 | K33: 123.5305836 | L33: 123.5093008 | M33: 123.488018 | N33: 123.4667353 | X33: =X20 -> 7.142857143 | Y33: =H$4-B33 -> 25 | Z33: =H$4*(1-H$10)-B33 -> 5.75
B34: 1250 | C34: 2016-07-06T05:19:49.996 | D34: =D21 -> 137.275 | E34: 0.45 | F34: =D34+E34 -> 137.725 | H34: 127.2199509 | I34: 126.7982876 | J34: 126.3766242 | K34: 125.9549609 | L34: 125.5332975 | M34: 125.1116342 | N34: 124.6899708 | X34: 35.71428571 | Y34: 125 | Z34: 105.75
B35: 1150 | C35: 2016-08-03T19:02:41.424 | D35: 139.5 | E35: -0.61 | F35: 138.89 | H35: 131.5138551 | I35: 130.6243525 | J35: 129.7348499 | K35: 128.8453473 | L35: 127.9558447 | M35: 127.066342 | N35: 126.1768394 | X35: 64.28571429 | Y35: 225 | Z35: 205.75
B36: 1050 | C36: 2016-09-01T08:45:32.853 | D36: 139.5 | E36: 13.47 | F36: 152.97 | H36: 136.6664892 | I36: 135.2223789 | J36: 133.7782687 | K36: 132.3341584 | L36: 130.8900482 | M36: 129.445938 | N36: 128.0018277 | X36: 92.85714286 | Y36: 325 | Z36: 305.75
B37: 950 | C37: 2016-09-29T22:28:24.281 | D37: 138.95 | E37: 11.21 | F37: 150.16 | H37: 142.9483563 | I37: 140.8354309 | J37: 138.7225054 | K37: 136.60958 | L37: 134.4966545 | M37: 132.3837291 | N37: 130.2708036 | X37: 121.4285714 | Y37: 425 | Z37: 405.75
B38: 850 | C38: 2016-10-28T12:11:15.710 | D38: 179.575 | E38: -8.99 | F38: 170.585 | H38: 150.7572705 | I38: 147.8209713 | J38: 144.8846721 | K38: 141.9483729 | L38: 139.0120737 | M38: 136.0757745 | N38: 133.1394753 | X38: 150 | Y38: 525 | Z38: 505.75
B39: 750 | C39: 2016-11-26T01:54:07.139 | D39: 179.35 | E39: -0.84 | F39: 178.51 | H39: 160.7032298 | I39: 156.7271278 | J39: 152.7510258 | K39: 148.7749237 | L39: 144.7988217 | M39: 140.8227197 | N39: 136.8466177 | X39: 178.5714286 | Y39: 625 | Z39: 605.75
G40: 1 | H40: =Sell!X44 -> Based on a selling price of $125/cwt.
H42: Breakeven Buying Price is above Expected cash price (expect positive returns)
H43: Breakeven Buying Price is below Expected cash price (expect negative returns)
